[Event "Titled Tuesday Blitz May 10 Late 2022"]
[White "Wartiovaara, Oliver"]
[Black "Lehtosaari, Mauri"]
[WhiteFideId "513024"]
[BlackFideId "501999"]
[WhiteElo "1971"]
[BlackElo "2519"]
[Result "0-1"]
[Round "08"]
[TimeControl "180+1"]
[Date "2022.05.11"]
[WhiteClock "0:00:08"]
[BlackClock "0:00:09"]

1. e4 {[%clk 0:03:00]}  d5 {[%clk 0:02:59]} 2. exd5 {[%clk 0:02:57]}  Qxd5 {[%clk 0:03:00]} 3. Nc3 {[%clk 0:02:56]}  Qe5+ {[%clk 0:02:59]} 4. Be2 {[%clk 0:02:52]}  c6 {[%clk 0:02:56]} 5. Nf3 {[%clk 0:02:51]}  Qc7 {[%clk 0:02:56]} 6. d4 {[%clk 0:02:47]}  Bf5 {[%clk 0:02:53]} 7. Ne5 {[%clk 0:02:29]}  Nd7 {[%clk 0:02:43]} 8. Bf4 {[%clk 0:02:28]}  Qb6 {[%clk 0:02:18]} 9. Nc4 {[%clk 0:02:21]}  Qd8 {[%clk 0:02:14]} 10. g4 {[%clk 0:01:56]}  Bg6 {[%clk 0:02:14]} 11. h4 {[%clk 0:01:57]}  h6 {[%clk 0:02:09]} 12. h5 {[%clk 0:01:45]}  Bh7 {[%clk 0:02:09]} 13. Bd3 {[%clk 0:01:35]}  Ngf6 {[%clk 0:01:54]} 14. Bxh7 {[%clk 0:01:30]}  Nxh7 {[%clk 0:01:52]} 15. Qe2 {[%clk 0:01:17]}  e6 {[%clk 0:01:52]} 16. O-O-O {[%clk 0:00:52]}  Ndf6 {[%clk 0:01:39]} 17. Ne5 {[%clk 0:00:41]}  Be7 {[%clk 0:01:31]} 18. Rhg1 {[%clk 0:00:36]}  Nd5 {[%clk 0:01:23]} 19. Bd2 {[%clk 0:00:34]}  Bg5 {[%clk 0:01:17]} 20. Nxd5 {[%clk 0:00:33]}  Bxd2+ {[%clk 0:01:12]} 21. Rxd2 {[%clk 0:00:32]}  Qxd5 {[%clk 0:01:08]} 22. c4 {[%clk 0:00:31]}  Qd6 {[%clk 0:01:08]} 23. Kb1 {[%clk 0:00:29]}  O-O {[%clk 0:01:00]} 24. f4 {[%clk 0:00:27]}  c5 {[%clk 0:00:55]} 25. g5 {[%clk 0:00:24]}  hxg5 {[%clk 0:00:54]} 26. fxg5 {[%clk 0:00:15]}  cxd4 {[%clk 0:00:53]} 27. g6 {[%clk 0:00:12]}  Nf6 {[%clk 0:00:38]} 28. h6 {[%clk 0:00:10]}  d3 {[%clk 0:00:20]} 29. Rxd3 {[%clk 0:00:10]}  Qc5 {[%clk 0:00:17]} 30. Rdg3 {[%clk 0:00:10]}  Rad8 {[%clk 0:00:06]} 31. gxf7+ {[%clk 0:00:09]}  Kh7 {[%clk 0:00:05]} 32. Rxg7+ {[%clk 0:00:06]}  Kh8 {[%clk 0:00:05]} 33. Rg8+ {[%clk 0:00:06]}  Rxg8 {[%clk 0:00:03]} 34. fxg8=Q+ {[%clk 0:00:06]}  Rxg8 {[%clk 0:00:04]} 35. Nf7+ {[%clk 0:00:06]}  Kh7 {[%clk 0:00:04]} 36. Ng5+ {[%clk 0:00:05]}  Rxg5 {[%clk 0:00:02]} 37. Qd3+ {[%clk 0:00:06]}  Qf5 {[%clk 0:00:01]} 38. Qxf5+ {[%clk 0:00:04]}  Rxf5 {[%clk 0:00:02]} 39. Rg7+ {[%clk 0:00:03]}  Kxh6 {[%clk 0:00:03]} 40. Rxb7 {[%clk 0:00:04]}  Ne4 {[%clk 0:00:04]} 41. Rxa7 {[%clk 0:00:05]}  Kg6 {[%clk 0:00:04]} 42. Kc2 {[%clk 0:00:05]}  Kf6 {[%clk 0:00:05]} 43. Kd3 {[%clk 0:00:05]}  Nc5+ {[%clk 0:00:05]} 44. Kd4 {[%clk 0:00:05]}  Rh5 {[%clk 0:00:03]} 45. Ra8 {[%clk 0:00:06]}  Nd7 {[%clk 0:00:03]} 46. Rd8 {[%clk 0:00:06]}  Ke7 {[%clk 0:00:03]} 47. Rg8 {[%clk 0:00:06]}  Rh4+ {[%clk 0:00:04]} 48. Kd3 {[%clk 0:00:05]}  Kd6 {[%clk 0:00:05]} 49. b4 {[%clk 0:00:05]}  Ne5+ {[%clk 0:00:05]} 50. Ke3 {[%clk 0:00:04]}  Nxc4+ {[%clk 0:00:06]} 51. Ke2 {[%clk 0:00:04]}  Rh2+ {[%clk 0:00:06]} 52. Kd3 {[%clk 0:00:04]}  Ne5+ {[%clk 0:00:06]} 53. Ke4 {[%clk 0:00:04]}  Re2+ {[%clk 0:00:06]} 54. Kd4 {[%clk 0:00:04]}  Rd2+ {[%clk 0:00:07]} 55. Kc3 {[%clk 0:00:04]}  Rxa2 {[%clk 0:00:07]} 56. Rd8+ {[%clk 0:00:04]}  Ke7 {[%clk 0:00:07]} 57. Rd1 {[%clk 0:00:03]}  Ra8 {[%clk 0:00:07]} 58. b5 {[%clk 0:00:03]}  Nd7 {[%clk 0:00:06]} 59. Kb4 {[%clk 0:00:04]}  Rb8 {[%clk 0:00:06]} 60. Re1 {[%clk 0:00:04]}  e5 {[%clk 0:00:06]} 61. Rd1 {[%clk 0:00:05]}  Ke6 {[%clk 0:00:07]} 62. Ka5 {[%clk 0:00:05]}  e4 {[%clk 0:00:07]} 63. Ka6 {[%clk 0:00:05]}  Rb6+ {[%clk 0:00:07]} 64. Ka5 {[%clk 0:00:05]}  Rd6 {[%clk 0:00:07]} 65. Re1 {[%clk 0:00:05]}  Ke5 {[%clk 0:00:07]} 66. Kb4 {[%clk 0:00:05]}  Kf4 {[%clk 0:00:07]} 67. Kc4 {[%clk 0:00:06]}  e3 {[%clk 0:00:07]} 68. Kc3 {[%clk 0:00:06]}  Kf3 {[%clk 0:00:07]} 69. Rf1+ {[%clk 0:00:06]}  Ke2 {[%clk 0:00:06]} 70. Rh1 {[%clk 0:00:07]}  Kf2 {[%clk 0:00:06]} 71. Rh2+ {[%clk 0:00:07]}  Kg3 {[%clk 0:00:06]} 72. Re2 {[%clk 0:00:07]}  Kf3 {[%clk 0:00:07]} 73. Re1 {[%clk 0:00:08]}  e2 {[%clk 0:00:07]} 74. Kc2 {[%clk 0:00:08]}  Kf2 {[%clk 0:00:08]} 75. Rh1 {[%clk 0:00:08]}  e1=Q {[%clk 0:00:08]} 76. Rxe1 {[%clk 0:00:08]}  Kxe1 {[%clk 0:00:09]} 0-1


[Site "https://www.chess.com"]

[Event "Titled Tuesday Blitz May 10 Late 2022"]
[White "Weber, Samuel"]
[Black "Romanchuk, Viktor"]
[WhiteFideId "12924008"]
[BlackFideId "14109271"]
[WhiteElo "2215"]
[BlackElo "2242"]
[Result "0-1"]
[Round "08"]
[TimeControl "180+1"]
[Date "2022.05.11"]
[WhiteClock "0:00:09"]
[BlackClock "0:00:36"]

1. b3 {[%clk 0:03:00]}  d5 {[%clk 0:02:58]} 2. Nf3 {[%clk 0:03:00]}  c6 {[%clk 0:02:58]} 3. Bb2 {[%clk 0:03:01]}  Bf5 {[%clk 0:02:58]} 4. e3 {[%clk 0:03:01]}  e6 {[%clk 0:02:59]} 5. d4 {[%clk 0:03:01]}  Nd7 {[%clk 0:02:59]} 6. Bd3 {[%clk 0:03:01]}  Ngf6 {[%clk 0:02:58]} 7. Bxf5 {[%clk 0:03:01]}  exf5 {[%clk 0:02:58]} 8. O-O {[%clk 0:03:02]}  Bd6 {[%clk 0:02:56]} 9. c4 {[%clk 0:03:03]}  O-O {[%clk 0:02:56]} 10. cxd5 {[%clk 0:03:03]}  Nxd5 {[%clk 0:02:55]} 11. Nc3 {[%clk 0:03:03]}  N7f6 {[%clk 0:02:55]} 12. Ne2 {[%clk 0:03:02]}  Re8 {[%clk 0:02:50]} 13. Qc2 {[%clk 0:03:02]}  g6 {[%clk 0:02:48]} 14. Rac1 {[%clk 0:02:53]}  Qe7 {[%clk 0:02:45]} 15. Nc3 {[%clk 0:02:49]}  Nxc3 {[%clk 0:02:42]} 16. Bxc3 {[%clk 0:02:47]}  Qe4 {[%clk 0:02:39]} 17. Qd1 {[%clk 0:02:42]}  Nd5 {[%clk 0:02:36]} 18. Bb2 {[%clk 0:02:42]}  f4 {[%clk 0:02:35]} 19. Nd2 {[%clk 0:02:35]}  Qd3 {[%clk 0:02:24]} 20. e4 {[%clk 0:02:35]}  Nb4 {[%clk 0:02:23]} 21. a3 {[%clk 0:02:23]}  Na6 {[%clk 0:02:18]} 22. e5 {[%clk 0:02:21]}  Bf8 {[%clk 0:02:16]} 23. Re1 {[%clk 0:02:08]}  Bg7 {[%clk 0:02:02]} 24. Ne4 {[%clk 0:02:08]}  Qxd1 {[%clk 0:02:02]} 25. Rcxd1 {[%clk 0:01:57]}  Red8 {[%clk 0:01:59]} 26. Nd6 {[%clk 0:01:56]}  Rd7 {[%clk 0:01:58]} 27. Re4 {[%clk 0:01:51]}  g5 {[%clk 0:01:58]} 28. Nf5 {[%clk 0:01:42]}  Nc7 {[%clk 0:01:54]} 29. d5 {[%clk 0:01:18]}  cxd5 {[%clk 0:01:49]} 30. Rb4 {[%clk 0:01:15]}  Ne6 {[%clk 0:01:48]} 31. Nd6 {[%clk 0:01:12]}  Rxd6 {[%clk 0:01:43]} 32. exd6 {[%clk 0:01:11]}  Bxb2 {[%clk 0:01:43]} 33. Rxd5 {[%clk 0:01:12]}  b6 {[%clk 0:01:41]} 34. Rc4 {[%clk 0:01:07]}  Bxa3 {[%clk 0:01:35]} 35. d7 {[%clk 0:01:07]}  Rd8 {[%clk 0:01:34]} 36. Ra4 {[%clk 0:00:57]}  Bc5 {[%clk 0:01:25]} 37. Rxa7 {[%clk 0:00:58]}  h6 {[%clk 0:01:25]} 38. Kf1 {[%clk 0:00:49]}  Kf8 {[%clk 0:01:24]} 39. f3 {[%clk 0:00:42]}  Ke7 {[%clk 0:01:24]} 40. Ke1 {[%clk 0:00:33]}  Be3 {[%clk 0:01:18]} 41. b4 {[%clk 0:00:28]}  f6 {[%clk 0:01:06]} 42. Ke2 {[%clk 0:00:20]}  Nf8 {[%clk 0:01:06]} 43. Kd3 {[%clk 0:00:16]}  Rxd7 {[%clk 0:01:05]} 44. Rdxd7+ {[%clk 0:00:16]}  Nxd7 {[%clk 0:01:06]} 45. Ke4 {[%clk 0:00:16]}  Ke6 {[%clk 0:01:02]} 46. Rc7 {[%clk 0:00:16]}  f5+ {[%clk 0:01:01]} 47. Kd3 {[%clk 0:00:16]}  Kd6 {[%clk 0:01:01]} 48. Rc8 {[%clk 0:00:16]}  h5 {[%clk 0:00:56]} 49. b5 {[%clk 0:00:16]}  h4 {[%clk 0:00:53]} 50. Rc6+ {[%clk 0:00:16]}  Kd5 {[%clk 0:00:48]} 51. Rc7 {[%clk 0:00:17]}  Ne5+ {[%clk 0:00:44]} 52. Kc3 {[%clk 0:00:17]}  g4 {[%clk 0:00:44]} 53. fxg4 {[%clk 0:00:16]}  fxg4 {[%clk 0:00:43]} 54. Rh7 {[%clk 0:00:15]}  f3 {[%clk 0:00:42]} 55. gxf3 {[%clk 0:00:14]}  gxf3 {[%clk 0:00:40]} 56. Rh8 {[%clk 0:00:12]}  f2 {[%clk 0:00:40]} 57. Rf8 {[%clk 0:00:12]}  Ke4 {[%clk 0:00:40]} 58. Kc2 {[%clk 0:00:11]}  Nf3 {[%clk 0:00:40]} 59. Re8+ {[%clk 0:00:12]}  Kf4 {[%clk 0:00:39]} 60. Rf8+ {[%clk 0:00:12]}  Kg4 {[%clk 0:00:39]} 61. h3+ {[%clk 0:00:12]}  Kg3 {[%clk 0:00:39]} 62. Rg8+ {[%clk 0:00:12]}  Kxh3 {[%clk 0:00:39]} 63. Kd3 {[%clk 0:00:09]}  Bg5 {[%clk 0:00:35]} 64. Ke2 {[%clk 0:00:09]}  Kg2 {[%clk 0:00:36]} 0-1


[Site "https://www.chess.com"]

[Event "Titled Tuesday Blitz May 10 Late 2022"]
[White "Wieczorek, Oskar"]
[Black "Moral Garcia, Serafin"]
[WhiteFideId "1133950"]
[BlackFideId "2201925"]
[WhiteElo "2330"]
[BlackElo "2228"]
[Result "1-0"]
[Round "08"]
[TimeControl "180+1"]
[Date "2022.05.11"]
[WhiteClock "0:01:25"]
[BlackClock "0:01:21"]

1. e4 {[%clk 0:03:00]}  e5 {[%clk 0:03:00]} 2. Nf3 {[%clk 0:03:00]}  Nc6 {[%clk 0:03:00]} 3. Nc3 {[%clk 0:03:01]}  Nf6 {[%clk 0:02:59]} 4. a3 {[%clk 0:03:02]}  g6 {[%clk 0:02:58]} 5. Bc4 {[%clk 0:03:02]}  Bg7 {[%clk 0:02:57]} 6. d3 {[%clk 0:03:02]}  O-O {[%clk 0:02:57]} 7. a4 {[%clk 0:03:03]}  d6 {[%clk 0:02:55]} 8. a5 {[%clk 0:03:03]}  a6 {[%clk 0:02:54]} 9. O-O {[%clk 0:03:04]}  h6 {[%clk 0:02:51]} 10. h3 {[%clk 0:03:04]}  Be6 {[%clk 0:02:51]} 11. Bxe6 {[%clk 0:03:04]}  fxe6 {[%clk 0:02:51]} 12. Ne2 {[%clk 0:03:05]}  Nh5 {[%clk 0:02:49]} 13. Ng3 {[%clk 0:03:05]}  Nf4 {[%clk 0:02:49]} 14. c3 {[%clk 0:03:05]}  Qf6 {[%clk 0:02:47]} 15. Nh2 {[%clk 0:02:45]}  h5 {[%clk 0:02:46]} 16. Ne2 {[%clk 0:02:42]}  Rad8 {[%clk 0:02:42]} 17. Nxf4 {[%clk 0:02:34]}  exf4 {[%clk 0:02:42]} 18. d4 {[%clk 0:02:34]}  d5 {[%clk 0:02:40]} 19. exd5 {[%clk 0:02:14]}  exd5 {[%clk 0:02:39]} 20. Qb3 {[%clk 0:02:14]}  Qd6 {[%clk 0:01:38]} 21. Qxb7 {[%clk 0:02:09]}  Rb8 {[%clk 0:01:38]} 22. Qxa6 {[%clk 0:02:06]}  Ra8 {[%clk 0:01:38]} 23. Qb5 {[%clk 0:01:57]}  Rfb8 {[%clk 0:01:37]} 24. Qd3 {[%clk 0:01:51]}  Rxa5 {[%clk 0:01:36]} 25. Rxa5 {[%clk 0:01:46]}  Nxa5 {[%clk 0:01:37]} 26. Nf3 {[%clk 0:01:47]}  Nc4 {[%clk 0:01:33]} 27. Re1 {[%clk 0:01:47]}  Nxb2 {[%clk 0:01:23]} 28. Qb1 {[%clk 0:01:32]}  Qa3 {[%clk 0:01:23]} 29. Qxg6 {[%clk 0:01:29]}  Qxc3 {[%clk 0:01:21]} 30. Bxb2 {[%clk 0:01:25]} 1-0


[Site "https://www.chess.com"]

[Event "Titled Tuesday Blitz May 10 Late 2022"]
[White "Zhigalko, Sergei"]
[Black "Vasquez Schroeder, Rodrigo"]
[WhiteFideId "13502956"]
[BlackFideId "3400042"]
[WhiteElo "2662"]
[BlackElo "2567"]
[Result "1-0"]
[Round "08"]
[TimeControl "180+1"]
[Date "2022.05.10"]
[WhiteClock "0:00:04"]
[BlackClock "0:00:07"]

1. e4 {[%clk 0:03:00]}  e5 {[%clk 0:02:59]} 2. Nf3 {[%clk 0:03:01]}  Nc6 {[%clk 0:02:58]} 3. Bc4 {[%clk 0:03:01]}  Bc5 {[%clk 0:02:57]} 4. b4 {[%clk 0:03:02]}  Bxb4 {[%clk 0:02:56]} 5. c3 {[%clk 0:03:02]}  Ba5 {[%clk 0:02:54]} 6. d4 {[%clk 0:03:02]}  d6 {[%clk 0:02:52]} 7. Qb3 {[%clk 0:03:02]}  Qd7 {[%clk 0:02:52]} 8. O-O {[%clk 0:03:02]}  Bb6 {[%clk 0:02:45]} 9. Nbd2 {[%clk 0:03:02]}  Na5 {[%clk 0:02:19]} 10. Qc2 {[%clk 0:03:01]}  Nxc4 {[%clk 0:02:01]} 11. Nxc4 {[%clk 0:03:02]}  exd4 {[%clk 0:02:01]} 12. cxd4 {[%clk 0:03:01]}  Ne7 {[%clk 0:02:00]} 13. a4 {[%clk 0:03:01]}  Nc6 {[%clk 0:01:49]} 14. Bb2 {[%clk 0:02:42]}  Na5 {[%clk 0:01:43]} 15. d5 {[%clk 0:02:35]}  Nxc4 {[%clk 0:01:33]} 16. Qxc4 {[%clk 0:02:19]}  a5 {[%clk 0:01:19]} 17. e5 {[%clk 0:01:24]}  O-O {[%clk 0:01:15]} 18. Rfe1 {[%clk 0:01:15]}  dxe5 {[%clk 0:01:11]} 19. Rxe5 {[%clk 0:01:09]}  Qg4 {[%clk 0:01:00]} 20. Qxg4 {[%clk 0:00:46]}  Bxg4 {[%clk 0:00:59]} 21. Rg5 {[%clk 0:00:47]}  f6 {[%clk 0:00:28]} 22. Rxg4 {[%clk 0:00:46]}  Rad8 {[%clk 0:00:29]} 23. Rd1 {[%clk 0:00:40]}  Kf7 {[%clk 0:00:26]} 24. Rc4 {[%clk 0:00:30]}  Rfe8 {[%clk 0:00:25]} 25. Kf1 {[%clk 0:00:23]}  Rd7 {[%clk 0:00:25]} 26. Rc2 {[%clk 0:00:23]}  Red8 {[%clk 0:00:24]} 27. Rcd2 {[%clk 0:00:22]}  Bc5 {[%clk 0:00:23]} 28. Bc3 {[%clk 0:00:22]}  b6 {[%clk 0:00:23]} 29. g4 {[%clk 0:00:22]}  g5 {[%clk 0:00:20]} 30. h4 {[%clk 0:00:21]}  h6 {[%clk 0:00:20]} 31. Kg2 {[%clk 0:00:22]}  Rd6 {[%clk 0:00:19]} 32. hxg5 {[%clk 0:00:21]}  hxg5 {[%clk 0:00:19]} 33. Kf1 {[%clk 0:00:21]}  Kg6 {[%clk 0:00:19]} 34. Kg2 {[%clk 0:00:18]}  Re8 {[%clk 0:00:19]} 35. Re1 {[%clk 0:00:15]}  Red8 {[%clk 0:00:17]} 36. Re6 {[%clk 0:00:09]}  Rxe6 {[%clk 0:00:18]} 37. dxe6 {[%clk 0:00:10]}  Re8 {[%clk 0:00:18]} 38. Re2 {[%clk 0:00:09]}  Rd8 {[%clk 0:00:14]} 39. Bd4 {[%clk 0:00:07]}  Be7 {[%clk 0:00:13]} 40. Bc3 {[%clk 0:00:06]}  Bc5 {[%clk 0:00:12]} 41. Nd4 {[%clk 0:00:06]}  Re8 {[%clk 0:00:09]} 42. Nf5 {[%clk 0:00:06]}  Bf8 {[%clk 0:00:09]} 43. Kf3 {[%clk 0:00:06]}  Bc5 {[%clk 0:00:09]} 44. Bd4 {[%clk 0:00:05]}  Bb4 {[%clk 0:00:08]} 45. Bb2 {[%clk 0:00:04]}  Bc5 {[%clk 0:00:07]} 46. Re4 {[%clk 0:00:04]}  Bb4 {[%clk 0:00:07]} 47. Ke2 {[%clk 0:00:04]}  Bc5 {[%clk 0:00:07]} 48. Bd4 {[%clk 0:00:05]}  Bb4 {[%clk 0:00:06]} 49. f3 {[%clk 0:00:05]}  c5 {[%clk 0:00:07]} 50. Bf2 {[%clk 0:00:05]}  c4 {[%clk 0:00:07]} 51. e7 {[%clk 0:00:04]}  Kf7 {[%clk 0:00:07]} 52. Bxb6 {[%clk 0:00:04]} 1-0


[Site "https://www.chess.com"]

[Event "Titled Tuesday Blitz May 10 Late 2022"]
[White "Zhou, Qiyu"]
[Black "Leitao, Rafael"]
[WhiteFideId "505161"]
[BlackFideId "2101246"]
[WhiteElo "1925"]
[BlackElo "2609"]
[Result "1-0"]
[Round "08"]
[TimeControl "180+1"]
[Date "2022.05.10"]
[WhiteClock "0:00:04"]
[BlackClock "0:00:32"]

1. e4 {[%clk 0:03:00]}  c5 {[%clk 0:02:59]} 2. Nf3 {[%clk 0:03:00]}  d6 {[%clk 0:02:57]} 3. d4 {[%clk 0:03:01]}  cxd4 {[%clk 0:02:57]} 4. Nxd4 {[%clk 0:03:02]}  Nf6 {[%clk 0:02:57]} 5. Nc3 {[%clk 0:03:02]}  Nc6 {[%clk 0:02:58]} 6. Bg5 {[%clk 0:02:58]}  e6 {[%clk 0:02:57]} 7. Qd2 {[%clk 0:02:56]}  a6 {[%clk 0:02:57]} 8. O-O-O {[%clk 0:02:54]}  Bd7 {[%clk 0:02:56]} 9. f3 {[%clk 0:02:52]}  Nxd4 {[%clk 0:02:55]} 10. Qxd4 {[%clk 0:02:51]}  Be7 {[%clk 0:02:55]} 11. h4 {[%clk 0:02:48]}  Qc7 {[%clk 0:02:51]} 12. Bd3 {[%clk 0:02:38]}  Rc8 {[%clk 0:02:39]} 13. Kb1 {[%clk 0:02:33]}  b5 {[%clk 0:02:27]} 14. Qf2 {[%clk 0:02:14]}  b4 {[%clk 0:02:22]} 15. Ne2 {[%clk 0:02:10]}  Bb5 {[%clk 0:02:20]} 16. Nd4 {[%clk 0:02:06]}  Bxd3 {[%clk 0:02:19]} 17. cxd3 {[%clk 0:02:07]}  O-O {[%clk 0:02:18]} 18. Rc1 {[%clk 0:02:03]}  Qb7 {[%clk 0:02:14]} 19. g4 {[%clk 0:01:54]}  a5 {[%clk 0:01:57]} 20. Be3 {[%clk 0:01:33]}  Nd7 {[%clk 0:01:54]} 21. f4 {[%clk 0:01:29]}  Nc5 {[%clk 0:01:53]} 22. Qd2 {[%clk 0:01:23]}  Qa6 {[%clk 0:01:50]} 23. Rhd1 {[%clk 0:01:16]}  a4 {[%clk 0:01:32]} 24. g5 {[%clk 0:00:18]}  Rc7 {[%clk 0:01:22]} 25. Rc4 {[%clk 0:00:14]}  d5 {[%clk 0:01:19]} 26. exd5 {[%clk 0:00:14]}  exd5 {[%clk 0:01:19]} 27. Rcc1 {[%clk 0:00:13]}  Rfc8 {[%clk 0:01:16]} 28. Nf5 {[%clk 0:00:08]}  Bf8 {[%clk 0:01:17]} 29. Bxc5 {[%clk 0:00:08]}  Bxc5 {[%clk 0:01:13]} 30. d4 {[%clk 0:00:08]}  Bf8 {[%clk 0:01:13]} 31. h5 {[%clk 0:00:05]}  Qe6 {[%clk 0:01:10]} 32. Ng3 {[%clk 0:00:04]}  a3 {[%clk 0:01:07]} 33. b3 {[%clk 0:00:03]}  Rc3 {[%clk 0:01:07]} 34. Rxc3 {[%clk 0:00:03]}  Rxc3 {[%clk 0:01:03]} 35. Re1 {[%clk 0:00:03]}  Qg4 {[%clk 0:01:00]} 36. Ne2 {[%clk 0:00:02]}  Qf5+ {[%clk 0:00:59]} 37. Ka1 {[%clk 0:00:01]}  Rc2 {[%clk 0:01:00]} 38. Qd1 {[%clk 0:00:01]}  Qe4 {[%clk 0:00:54]} 39. Ng3 {[%clk 0:00:01]}  Qg2 {[%clk 0:00:40]} 40. Re2 {[%clk 0:00:01]}  Rxe2 {[%clk 0:00:40]} 41. Nxe2 {[%clk 0:00:02]}  Qf3 {[%clk 0:00:39]} 42. Kb1 {[%clk 0:00:02]}  Qxh5 {[%clk 0:00:39]} 43. Qd3 {[%clk 0:00:02]}  Qh1+ {[%clk 0:00:39]} 44. Kc2 {[%clk 0:00:03]}  Qa1 {[%clk 0:00:38]} 45. Nc1 {[%clk 0:00:04]}  Qb2+ {[%clk 0:00:38]} 46. Kd1 {[%clk 0:00:04]}  g6 {[%clk 0:00:38]} 47. Qd2 {[%clk 0:00:05]}  Bd6 {[%clk 0:00:36]} 48. Nd3 {[%clk 0:00:05]}  Qb1+ {[%clk 0:00:34]} 49. Ke2 {[%clk 0:00:05]}  Qg1 {[%clk 0:00:34]} 50. Ne5 {[%clk 0:00:04]}  Qg2+ {[%clk 0:00:33]} 51. Kd3 {[%clk 0:00:05]}  Kg7 {[%clk 0:00:32]} 52. Qxg2 {[%clk 0:00:04]} 1-0


[Site "https://www.chess.com"]

[Event "Titled Tuesday Blitz May 10 Late 2022"]
[White "Arabidze, Meri"]
[Black "Jegorovas, Aleksandras"]
[WhiteFideId "13604040"]
[BlackFideId "12801950"]
[WhiteElo "2624"]
[BlackElo "2532"]
[Result "1-0"]
[Round "09"]
[TimeControl "180+1"]
[Date "2022.05.11"]
[WhiteClock "0:01:44"]
[BlackClock "0:00:18"]

1. g3 {[%clk 0:03:00]}  d5 {[%clk 0:02:54]} 2. Bg2 {[%clk 0:03:01]}  c6 {[%clk 0:02:51]} 3. Nf3 {[%clk 0:03:00]}  h5 {[%clk 0:02:51]} 4. d4 {[%clk 0:02:58]}  h4 {[%clk 0:02:50]} 5. Nxh4 {[%clk 0:02:57]}  Rxh4 {[%clk 0:02:49]} 6. gxh4 {[%clk 0:02:57]}  Bf5 {[%clk 0:02:42]} 7. Nd2 {[%clk 0:02:50]}  e6 {[%clk 0:02:40]} 8. Nf3 {[%clk 0:02:50]}  Be4 {[%clk 0:02:36]} 9. c3 {[%clk 0:02:44]}  Nd7 {[%clk 0:02:33]} 10. Bg5 {[%clk 0:02:39]}  Be7 {[%clk 0:02:26]} 11. Qd2 {[%clk 0:02:37]}  Qa5 {[%clk 0:02:21]} 12. Rg1 {[%clk 0:02:33]}  Ngf6 {[%clk 0:02:13]} 13. Ne5 {[%clk 0:02:27]}  Bxg2 {[%clk 0:01:58]} 14. Nxd7 {[%clk 0:02:27]}  Kxd7 {[%clk 0:01:40]} 15. Rxg2 {[%clk 0:02:26]}  Ne4 {[%clk 0:01:37]} 16. Qe3 {[%clk 0:02:26]}  f6 {[%clk 0:01:34]} 17. Bf4 {[%clk 0:02:25]}  g5 {[%clk 0:01:21]} 18. hxg5 {[%clk 0:02:26]}  fxg5 {[%clk 0:01:21]} 19. Be5 {[%clk 0:02:22]}  c5 {[%clk 0:01:18]} 20. f3 {[%clk 0:02:18]}  cxd4 {[%clk 0:01:17]} 21. Bxd4 {[%clk 0:02:12]}  Nd6 {[%clk 0:00:54]} 22. Qd3 {[%clk 0:02:11]}  Nf5 {[%clk 0:00:48]} 23. a3 {[%clk 0:02:03]}  Rc8 {[%clk 0:00:43]} 24. Rg4 {[%clk 0:01:59]}  Rc4 {[%clk 0:00:40]} 25. Be5 {[%clk 0:01:54]}  Rxg4 {[%clk 0:00:27]} 26. fxg4 {[%clk 0:01:55]}  Nd6 {[%clk 0:00:25]} 27. Bxd6 {[%clk 0:01:44]}  Bxd6 {[%clk 0:00:24]} 28. O-O-O {[%clk 0:01:44]}  Bxh2 {[%clk 0:00:19]} 29. Qh7+ {[%clk 0:01:43]}  Kc6 {[%clk 0:00:18]} 30. Qxh2 {[%clk 0:01:44]} 1-0


[Site "https://www.chess.com"]

[Event "Titled Tuesday Blitz May 10 Late 2022"]
[White "Ardila, Oscar Humberto"]
[Black "Bernal Moro, Luis Javier"]
[WhiteFideId "4404742"]
[BlackFideId "2200236"]
[WhiteElo "1928"]
[BlackElo "2373"]
[Result "0-1"]
[Round "09"]
[TimeControl "180+1"]
[Date "2022.05.11"]
[WhiteClock "0:01:14"]
[BlackClock "0:02:09"]

1. d4 {[%clk 0:02:59]}  Nf6 {[%clk 0:02:59]} 2. c4 {[%clk 0:02:58]}  g6 {[%clk 0:02:59]} 3. Nc3 {[%clk 0:02:58]}  Bg7 {[%clk 0:03:00]} 4. e4 {[%clk 0:02:58]}  d6 {[%clk 0:03:00]} 5. Nf3 {[%clk 0:02:58]}  O-O {[%clk 0:03:00]} 6. Be2 {[%clk 0:02:58]}  c5 {[%clk 0:02:58]} 7. d5 {[%clk 0:02:58]}  e6 {[%clk 0:02:56]} 8. h3 {[%clk 0:02:56]}  Re8 {[%clk 0:02:55]} 9. O-O {[%clk 0:02:51]}  exd5 {[%clk 0:02:52]} 10. exd5 {[%clk 0:02:51]}  Ne4 {[%clk 0:02:52]} 11. Nxe4 {[%clk 0:02:48]}  Rxe4 {[%clk 0:02:53]} 12. Bd3 {[%clk 0:02:48]}  Re8 {[%clk 0:02:52]} 13. Re1 {[%clk 0:02:34]}  Rxe1+ {[%clk 0:02:47]} 14. Qxe1 {[%clk 0:02:34]}  Nd7 {[%clk 0:02:47]} 15. Qe2 {[%clk 0:02:30]}  Ne5 {[%clk 0:02:43]} 16. Nxe5 {[%clk 0:02:08]}  Bxe5 {[%clk 0:02:43]} 17. Be3 {[%clk 0:02:08]}  Qf6 {[%clk 0:02:36]} 18. Rb1 {[%clk 0:02:08]}  Bd7 {[%clk 0:02:36]} 19. b3 {[%clk 0:02:07]}  Re8 {[%clk 0:02:34]} 20. Qc2 {[%clk 0:01:57]}  Bd4 {[%clk 0:02:30]} 21. Bxd4 {[%clk 0:01:43]}  Qxd4 {[%clk 0:02:27]} 22. Kf1 {[%clk 0:01:40]}  Qe5 {[%clk 0:02:17]} 23. Qd2 {[%clk 0:01:37]}  Qh2 {[%clk 0:02:12]} 24. f3 {[%clk 0:01:19]}  Bxh3 {[%clk 0:02:10]} 25. gxh3 {[%clk 0:01:14]}  Qxd2 {[%clk 0:02:09]} 0-1


[Site "https://www.chess.com"]

[Event "Titled Tuesday Blitz May 10 Late 2022"]
[White "Baches Garcia, Guillermo"]
[Black "Miszler, Levente"]
[WhiteFideId "2209764"]
[BlackFideId "763276"]
[WhiteElo "2509"]
[BlackElo "1966"]
[Result "1-0"]
[Round "09"]
[TimeControl "180+1"]
[Date "2022.05.11"]
[WhiteClock "0:00:15"]
[BlackClock "0:00:16"]

1. e4 {[%clk 0:02:57]}  e6 {[%clk 0:02:58]} 2. d4 {[%clk 0:02:57]}  d5 {[%clk 0:02:58]} 3. exd5 {[%clk 0:02:58]}  exd5 {[%clk 0:02:57]} 4. Nf3 {[%clk 0:02:58]}  Nf6 {[%clk 0:02:55]} 5. Bd3 {[%clk 0:02:59]}  Bd6 {[%clk 0:02:54]} 6. O-O {[%clk 0:02:59]}  O-O {[%clk 0:02:55]} 7. h3 {[%clk 0:02:59]}  h6 {[%clk 0:02:53]} 8. c4 {[%clk 0:02:59]}  c6 {[%clk 0:02:54]} 9. Nc3 {[%clk 0:02:59]}  Be6 {[%clk 0:02:51]} 10. c5 {[%clk 0:02:57]}  Bc7 {[%clk 0:02:51]} 11. Bd2 {[%clk 0:02:54]}  Nbd7 {[%clk 0:02:50]} 12. Re1 {[%clk 0:02:51]}  Re8 {[%clk 0:02:50]} 13. Qc2 {[%clk 0:02:50]}  Nh5 {[%clk 0:02:46]} 14. Bh7+ {[%clk 0:02:36]}  Kh8 {[%clk 0:02:37]} 15. Bf5 {[%clk 0:02:36]}  Qf6 {[%clk 0:02:35]} 16. Bxe6 {[%clk 0:02:33]}  Rxe6 {[%clk 0:02:35]} 17. Rxe6 {[%clk 0:02:30]}  Qxe6 {[%clk 0:02:29]} 18. Re1 {[%clk 0:02:26]}  Qf6 {[%clk 0:02:28]} 19. Qd3 {[%clk 0:02:09]}  Nf4 {[%clk 0:02:25]} 20. Bxf4 {[%clk 0:02:08]}  Bxf4 {[%clk 0:02:18]} 21. b4 {[%clk 0:02:03]}  Nf8 {[%clk 0:02:17]} 22. Ne5 {[%clk 0:01:56]}  Ne6 {[%clk 0:02:07]} 23. g3 {[%clk 0:01:42]}  Bxe5 {[%clk 0:02:06]} 24. Rxe5 {[%clk 0:01:42]}  g6 {[%clk 0:01:59]} 25. Kg2 {[%clk 0:01:31]}  Kg7 {[%clk 0:01:58]} 26. b5 {[%clk 0:01:28]}  Rb8 {[%clk 0:01:30]} 27. Qe3 {[%clk 0:01:18]}  Rd8 {[%clk 0:01:14]} 28. f4 {[%clk 0:01:13]}  Nc7 {[%clk 0:01:03]} 29. a4 {[%clk 0:01:08]}  b6 {[%clk 0:00:58]} 30. cxb6 {[%clk 0:00:59]}  axb6 {[%clk 0:00:56]} 31. g4 {[%clk 0:00:41]}  c5 {[%clk 0:00:50]} 32. Ne2 {[%clk 0:00:33]}  c4 {[%clk 0:00:48]} 33. g5 {[%clk 0:00:30]}  hxg5 {[%clk 0:00:47]} 34. fxg5 {[%clk 0:00:31]}  Qd6 {[%clk 0:00:46]} 35. Nc3 {[%clk 0:00:25]}  Qa3 {[%clk 0:00:40]} 36. Qf3 {[%clk 0:00:17]}  Rd6 {[%clk 0:00:16]} 37. Re7 {[%clk 0:00:15]} 1-0


[Site "https://www.chess.com"]